fUSD/lending_fUSD_20251201
["ID","MTS","AMOUNT","RATE_DAILY","PERIOD"]
[395249094,1764568242825,-163.70980013,0.00015339,2]
[395249095,1764568242835,-226.79835367,0.00015339,2]
[395249096,1764568242846,-150.0,0.00015339,2]
[395249097,1764568242855,-698.84,0.00015342,8]
[395249098,1764568242865,-150.0,0.00015342,2]
[395249099,1764568242876,-600.0,0.00015342,2]
[395249100,1764568242886,-150.0,0.00015343,2]
[395249101,1764568242896,-150.0,0.00015347,2]
[395249102,1764568242907,-150.0,0.00015354,2]
[395249103,1764568242920,-163.70980013,0.00015356,2]
[395249104,1764568242930,-226.79835367,0.00015356,2]
[395249105,1764568242940,-150.0,0.00015362,2]
[395249106,1764568242950,-150.0,0.00015363,2]
[395249107,1764568242959,-150.0,0.00015371,2]
[395249108,1764568242968,-163.70980013,0.00015373,2]
[395249109,1764568242977,-226.79835367,0.00015373,2]
[395249110,1764568242987,-150.0,0.00015376,2]
[395249111,1764568242996,-150.0,0.00015377,2]
[395249112,1764568243006,-150.0,0.00015388,2]
[395249113,1764568243016,-163.70980013,0.00015391,2]
[395249114,1764568243026,-226.79835367,0.00015391,2]
[395249115,1764568243035,-150.0,0.00015391,2]
[395249116,1764568243044,-150.0,0.00015397,2]
[395249117,1764568243053,-150.0,0.00015398,2]
[395249118,1764568243063,-150.0,0.00015399,2]
[395249119,1764568243072,-150.0,0.00015401,2]
[395249120,1764568243082,-150.0,0.00015407,2]
[395249121,1764568243091,-163.70980013,0.00015408,2]
[395249122,1764568243100,-226.79835367,0.00015408,2]
[395249123,1764568243109,-150.0,0.00015413,2]
[395249124,1764568243118,-150.0,0.0001542,2]
[395249125,1764568243127,-163.70980013,0.00015425,2]
[395249126,1764568243136,-226.79835367,0.00015425,2]
[395249127,1764568243145,-150.0,0.00015427,2]
[395249128,1764568243154,-150.0,0.00015435,2]
[395249129,1764568243163,-150.0,0.00015437,2]
[395249130,1764568243172,-150.0,0.00015438,2]
[395249131,1764568243182,-163.70980013,0.00015442,2]
[395249132,1764568243192,-150.0,0.00015442,2]
[395249133,1764568243202,-226.79835367,0.00015442,2]
[395249134,1764568243211,-150.0,0.00015442,2]
[395249135,1764568243220,-173.83022775,0.00015449,2]
[395249136,1764568243229,-150.0,0.00015452,2]
[395249137,1764568243238,-150.0,0.00015455,2]
[395249138,1764568243247,-150.0,0.00015458,2]
[395249139,1764568243256,-163.70980013,0.00015459,2]
[395249140,1764568243265,-226.79835367,0.00015459,2]
[395249142,1764568243274,-150.0,0.00015463,2]
[395249143,1764568243283,-150.0,0.00015464,2]
[395249144,1764568243292,-150.0,0.00015466,2]
[395249145,1764568243301,-500.0,0.00015468,2]
[395249146,1764568243310,-859.47,0.00015468,2]
[395249147,1764568243319,-163.70980013,0.00015476,2]
[395249148,1764568243328,-226.79835367,0.00015476,2]
[395249149,1764568243337,-150.0,0.00015483,2]
[395249150,1764568243347,-150.0,0.00015486,2]
[395249151,1764568243356,-150.0,0.00015488,2]
[395249152,1764568243365,-163.70980013,0.00015494,2]
[395249153,1764568243374,-226.79835367,0.00015494,2]
[395249154,1764568243383,-150.0,0.00015494,2]
[395249155,1764568243393,-150.0,0.00015496,2]
[395249156,1764568243402,-150.0,0.00015507,2]
[395249157,1764568243411,-150.0,0.00015508,2]
[395249158,1764568243420,-150.0,0.00015509,2]
[395249159,1764568243429,-150.0,0.0001551,2]
[395249160,1764568243438,-163.70980013,0.00015511,2]
[395249161,1764568243448,-226.79835367,0.00015511,2]
[395249162,1764568243457,-150.0,0.00015512,2]
[395249163,1764568243466,-150.0,0.00015514,2]
[395249164,1764568243475,-150.0,0.00015526,2]
[395249165,1764568243485,-163.70980013,0.00015528,2]
[395249166,1764568243494,-226.79835367,0.00015528,2]
[395249167,1764568243503,-150.0,0.0001553,2]
[395249168,1764568243513,-150.0,0.0001553,2]
[395249169,1764568243522,-36696.25539655,0.00015531,2]
[395249170,1764568243532,-13970.72633565,0.00015531,2]
[395249171,1764568243541,-150.0,0.00015537,2]
[395249172,1764568243550,-150.0,0.00015538,2]
[395249173,1764568243559,-163.70980013,0.00015545,2]
[395249174,1764568243568,-226.79835367,0.00015545,2]
[395249175,1764568243577,-150.0,0.00015545,2]
[395249176,1764568243587,-150.0,0.00015552,2]
[395249177,1764568243596,-150.0,0.00015556,2]
[395249178,1764568243605,-150.0,0.00015562,2]
[395249179,1764568243614,-163.70980013,0.00015562,2]
[395249180,1764568243623,-226.79835367,0.00015562,2]
[395249181,1764568243631,-150.0,0.00015562,2]
[395249182,1764568243640,-150.0,0.00015566,2]
[395249183,1764568243649,-150.0,0.00015574,2]
[395249184,1764568243658,-163.70980013,0.00015579,2]
[395249185,1764568243668,-226.79835367,0.00015579,2]
[395249186,1764568243677,-150.0,0.00015583,2]
[395249187,1764568243686,-150.0,0.00015586,2]
[395249188,1764568243695,-150.0,0.00015587,2]
[395249189,1764568243703,-150.0,0.00015594,2]
[395249190,1764568243712,-163.70980013,0.00015597,2]
[395249191,1764568243722,-150.0,0.00015597,2]
[395249192,1764568243731,-226.79835367,0.00015597,2]
[395249193,1764568243739,-150.0,0.00015597,2]
[395249194,1764568243748,-1459.46,0.00015612,2]
[395249195,1764568243757,-3000.0,0.00015612,2]
[395249196,1764568243766,-150.0,0.00015612,2]
[395249197,1764568243775,-163.70980013,0.00015614,2]
[395249198,1764568243785,-226.79835367,0.00015614,2]
[395249199,1764568243794,-150.0,0.00015615,2]
[395249200,1764568243803,-698.84,0.00015616,9]
[395249201,1764568243812,-150.0,0.00015616,2]
[395249202,1764568243821,-151.0,0.00015617,2]
[395249203,1764568243831,-150.0,0.00015619,2]
[395249204,1764568243839,-150.0,0.00015622,2]
[395249205,1764568244058,-207.4,0.00015625,2]
[395249206,1764568244096,-200.0,0.00015626,2]
[395249207,1764568244106,-500.0,0.00015626,2]
[395249208,1764568244116,-200.0,0.00015626,2]
[395249209,1764568244126,-150.0,0.00015627,2]
[395249210,1764568244136,-150.0,0.00015627,2]
[395249211,1764568244145,-163.70980013,0.00015631,2]
[395249212,1764568244155,-226.79835367,0.00015631,2]
[395249213,1764568244164,-500.0,0.00015632,2]
[395249214,1764568244174,-150.0,0.00015637,2]
[395249215,1764568244184,-150.0,0.00015641,2]
[395249216,1764568244194,-212.66437805,0.00015645,2]
[395249217,1764568244204,-150.0,0.00015645,2]
[395249218,1764568244213,-150.0,0.00015645,2]
[395249219,1764568244223,-150.0,0.00015645,2]
[395249220,1764568244232,-150.0,0.00015645,2]
[395249221,1764568244242,-500.0,0.00015645,2]
[395249222,1764568244252,-150.0,0.00015645,2]
[395249223,1764568244261,-500.0,0.00015645,2]
[395249224,1764568244270,-210.05516836,0.00015645,2]
[395249225,1764568244281,-252.7415751,0.00015645,2]
[395249226,1764568244290,-500.0,0.00015645,2]
[395249227,1764568244300,-500.0,0.00015645,2]
[395249228,1764568244309,-500.0,0.00015645,2]
[395249229,1764568244319,-150.0,0.00015645,2]
[395249230,1764568244328,-500.0,0.00015645,2]
[395249231,1764568244338,-500.0,0.00015645,2]
[395249232,1764568244347,-150.0,0.00015645,2]
[395249233,1764568244357,-225.27423133,0.00015645,2]
[395249234,1764568244367,-417.0,0.00015645,2]
[395249235,1764568244377,-500.0,0.00015645,2]
[395249236,1764568244386,-150.0,0.00015645,2]
[395249237,1764568244395,-150.0,0.00015645,2]
[395249238,1764568244404,-500.0,0.00015645,2]
[395249239,1764568244414,-3855.0,0.00015645,2]
[395249240,1764568244424,-150.0,0.00015645,2]
[395249241,1764568244433,-150.0,0.00015645,2]
[395249242,1764568244443,-150.0,0.00015645,2]
[395249243,1764568244452,-163.70980013,0.00015648,2]
[395249244,1764568244461,-226.79835367,0.00015648,2]
[395249245,1764568244471,-150.0,0.00015648,2]
[395249246,1764568244480,-150.0,0.0001565,2]
[395249247,1764568244489,-150.0,0.00015657,2]
[395249248,1764568244499,-150.0,0.00015662,2]
[395249249,1764568244508,-150.0,0.00015663,2]
[395249250,1764568244517,-163.70980013,0.00015665,2]
[395249251,1764568244527,-226.79835367,0.00015665,2]
[395249252,1764568244537,-150.0,0.00015671,2]
[395249253,1764568244546,-150.0,0.00015675,2]
[395249254,1764568244556,-150.0,0.00015678,2]
[395249255,1764568244565,-163.70980013,0.00015682,2]
[395249256,1764568244575,-226.79835367,0.00015682,2]
[395249257,1764568244585,-150.0,0.00015685,2]
[395249258,1764568244595,-150.0,0.00015687,2]
[395249259,1764568244605,-163.70980013,0.00015699,2]
[395249260,1764568244617,-226.79835367,0.00015699,2]
[395249261,1764568244628,-150.0,0.00015699,2]
[395249262,1764568244640,-150.0,0.00015705,2]
[395249263,1764568244650,-150.0,0.00015705,2]
[395249264,1764568244661,-150.0,0.00015707,2]
[395249265,1764568244672,-150.0,0.00015712,2]
[395249266,1764568244682,-150.0,0.00015712,2]
[395249267,1764568244692,-150.0,0.00015712,2]
[395249268,1764568244703,-163.70980013,0.00015717,2]
[395249269,1764568244713,-226.79835367,0.00015717,2]
[395249270,1764568244723,-150.0,0.00015726,2]
[395249271,1764568244733,-150.0,0.00015729,2]
[395249272,1764568244743,-150.0,0.00015731,2]
[395249273,1764568244753,-150.0,0.00015733,2]
[395249274,1764568244762,-163.70980013,0.00015734,2]
[395249275,1764568244772,-226.79835367,0.00015734,2]
[395249276,1764568244786,-150.0,0.00015735,2]
[395249277,1764568244796,-150.0,0.00015737,2]
[395249278,1764568244806,-150.0,0.00015741,2]
[395249279,1764568244815,-163.70980013,0.00015751,2]
[395249280,1764568244825,-150.0,0.00015751,2]
[395249281,1764568244835,-226.79835367,0.00015751,2]
[395249282,1764568244844,-150.0,0.00015751,2]
[395249283,1764568244853,-150.0,0.00015761,2]
[395249284,1764568244862,-150.0,0.00015762,2]
[395249285,1764568244872,-150.0,0.00015764,2]
[395249286,1764568244882,-1000.0,0.00015767,2]
[395249287,1764568244892,-163.70980013,0.00015768,2]
[395249288,1764568244902,-226.79835367,0.00015768,2]
[395249289,1764568244913,-150.0,0.00015773,2]
[395249290,1764568244926,-150.0,0.00015773,2]
[395249291,1764568244936,-500.0,0.0001578,2]
[395249292,1764568244946,-150.0,0.00015781,2]
[395249293,1764568244957,-150.0,0.00015782,2]
[395249294,1764568244968,-150.0,0.00015782,2]
[395249295,1764568244977,-278.76545568,0.00015782,2]
[395249296,1764568244986,-150.0,0.00015782,2]
[395249297,1764568244996,-500.0,0.00015782,2]
[395249298,1764568245006,-150.0,0.00015782,2]
[395249299,1764568245016,-500.0,0.00015782,2]
[395249300,1764568245025,-500.0,0.00015782,2]
[395249301,1764568245035,-500.0,0.00015782,2]
[395249302,1764568245044,-500.0,0.00015782,2]
[395249303,1764568245054,-268.2703708,0.00015782,2]
[395249304,1764568245063,-500.0,0.00015782,2]
[395249305,1764568245073,-500.0,0.00015782,2]
[395249306,1764568245082,-417.0,0.00015782,2]
[395249307,1764568245092,-500.0,0.00015782,2]
[395249308,1764568245101,-150.0,0.00015782,2]
[395249309,1764568245110,-150.0,0.00015782,2]
[395249310,1764568245119,-500.0,0.00015782,2]
[395249311,1764568245128,-3855.0,0.00015782,2]
[395249312,1764568245137,-150.0,0.00015782,2]
[395249313,1764568245146,-163.45254521,0.00015782,2]
[395249314,1764568245155,-163.70980013,0.00015785,2]
[395249315,1764568245164,-226.79835367,0.00015785,2]
[395249316,1764568245173,-150.0,0.00015787,2]
[395249317,1764568245182,-150.0,0.00015789,2]
[395249318,1764568245193,-1955.55,0.00015792,2]
[395249319,1764568245203,-1852.42,0.00015792,2]
[395249320,1764568245213,-150.0,0.00015794,2]
[395249321,1764568245222,-150.0,0.00015795,2]
[395249322,1764568245231,-150.0,0.00015797,2]
[395249323,1764568245240,-163.70980013,0.00015802,2]
[395249324,1764568245250,-226.79835367,0.00015802,2]
[395249325,1764568245259,-150.0,0.00015802,2]
[395249326,1764568245268,-150.0,0.00015805,2]
[395249327,1764568245279,-150.0,0.00015812,2]
[395249328,1764568245288,-1600.0,0.00015816,2]
[395249329,1764568245298,-150.0,0.00015817,2]
[395249330,1764568245307,-150.0,0.00015817,2]
[395249331,1764568245316,-163.70980013,0.0001582,2]
[395249332,1764568245326,-226.79835367,0.0001582,2]
[395249333,1764568245336,-150.0,0.00015824,2]
[395249334,1764568245345,-150.0,0.00015836,2]
[395249335,1764568245355,-163.70980013,0.00015837,2]
[395249336,1764568245367,-226.79835367,0.00015837,2]
[395249337,1764568245377,-150.0,0.00015837,2]
[395249338,1764568245386,-150.0,0.00015839,2]
[395249339,1764568245396,-150.0,0.00015845,2]
[395249340,1764568245407,-206.01551169,0.0001585,2]
[395249341,1764568245418,-500.0,0.0001585,2]
[395249342,1764568245427,-500.0,0.0001585,2]
[395249343,1764568245436,-500.0,0.0001585,2]
[395249344,1764568245447,-530.92789341,0.0001585,2]
[395249345,1764568245460,-500.0,0.0001585,2]
[395249346,1764568245469,-500.0,0.0001585,2]
[395249348,1764568245479,-500.0,0.0001585,2]
[395249349,1764568245489,-506.27683139,0.0001585,2]
[395249350,1764568245498,-586.42715679,0.0001585,2]
[395249351,1764568245507,-500.0,0.0001585,2]
[395249352,1764568245518,-595.94847156,0.0001585,2]
[395249353,1764568245527,-500.0,0.0001585,2]
[395249354,1764568245537,-500.0,0.0001585,2]
[395249355,1764568245546,-500.0,0.0001585,2]
[395249356,1764568245555,-500.24999643,0.0001585,2]
[395249357,1764568245566,-500.0,0.0001585,2]
[395249358,1764568245575,-500.0,0.0001585,2]
[395249359,1764568245586,-500.0,0.0001585,2]
[395249360,1764568245596,-200.09019976,0.0001585,2]
[395249361,1764568245605,-500.0,0.0001585,2]
[395249362,1764568245614,-507.99167839,0.0001585,2]
[395249363,1764568245623,-501.27985406,0.0001585,2]
[395249364,1764568245633,-160.09796136,0.0001585,2]
[395249365,1764568245644,-500.0,0.0001585,2]
[395249366,1764568245655,-500.0,0.0001585,2]
[395249367,1764568245666,-160.09684565,0.0001585,2]
[395249368,1764568245675,-333.57957552,0.0001585,2]
[395249369,1764568245684,-500.0,0.0001585,2]
[395249370,1764568245694,-500.0,0.0001585,2]
[395249371,1764568245706,-179.09525737,0.0001585,2]
[395249372,1764568245715,-500.0,0.0001585,2]
[395249373,1764568245724,-500.0,0.0001585,2]
[395249374,1764568245733,-500.0,0.0001585,2]
[395249375,1764568245743,-332.16239915,0.0001585,2]
[395249376,1764568245752,-500.0,0.0001585,2]
[395249377,1764568245761,-500.0,0.0001585,2]
[395249378,1764568245771,-500.0,0.0001585,2]
[395249379,1764568245780,-160.09780403,0.0001585,2]
[395249380,1764568245789,-306.16890781,0.0001585,2]
[395249381,1764568245798,-569.20900345,0.0001585,2]
[395249382,1764568245807,-500.0,0.0001585,2]
[395249383,1764568245816,-160.09781887,0.0001585,2]
[395249384,1764568245825,-548.17129532,0.0001585,2]
[395249385,1764568245835,-507.70227852,0.0001585,2]
[395249386,1764568245844,-160.0931227,0.0001585,2]
[395249387,1764568245854,-160.18575084,0.0001585,2]
[395249388,1764568245864,-501.32291125,0.0001585,2]
[395249389,1764568245874,-156.08046811,0.0001585,2]
[395249390,1764568245883,-500.0,0.0001585,2]
[395249391,1764568245893,-587.21395506,0.0001585,2]
[395249392,1764568245902,-219.62013657,0.0001585,2]
[395249393,1764568245912,-500.0,0.0001585,2]
[395249394,1764568245924,-500.0,0.0001585,2]
[395249395,1764568245934,-500.0,0.0001585,2]
[395249396,1764568245943,-160.09479154,0.0001585,2]
[395249397,1764568245952,-500.0,0.0001585,2]
[395249398,1764568245963,-500.0,0.0001585,2]
[395249399,1764568245972,-500.0,0.0001585,2]
[395249400,1764568245981,-281.76890158,0.0001585,2]
[395249401,1764568245992,-500.0,0.0001585,2]
[395249402,1764568246001,-500.0,0.0001585,2]
[395249403,1764568246011,-160.09669624,0.0001585,2]
[395249404,1764568246020,-163.70980013,0.00015854,2]
[395249405,1764568246031,-150.0,0.00015854,2]
[395249406,1764568246040,-226.79835367,0.00015854,2]
[395249407,1764568246050,-150.0,0.00015854,2]
[395249409,1764568246059,-150.0,0.00015854,2]
[395249410,1764568246069,-150.0,0.00015854,2]
[395249411,1764568246078,-150.0,0.00015861,2]
[395249412,1764568246088,-150.0,0.00015862,2]
[395249413,1764568246098,-163.70980013,0.00015871,2]
[395249414,1764568246107,-226.79835367,0.00015871,2]
[395249415,1764568246121,-150.0,0.00015872,2]
[395249416,1764568246131,-150.0,0.00015878,2]
[395249417,1764568246140,-150.0,0.00015883,2]
[395249418,1764568246150,-150.0,0.00015884,2]
[395249419,1764568246159,-1459.46,0.00015886,2]
[395249420,1764568246168,-150.0,0.00015887,2]
[395249421,1764568246178,-163.70980013,0.00015888,2]
[395249422,1764568246188,-226.79835367,0.00015888,2]
[395249424,1764568246197,-698.84,0.0001589,10]
[395249426,1764568246207,-150.0,0.0001589,2]
[395249428,1764568246216,-600.0,0.0001589,2]
[395249430,1764568246226,-1172.33649556,0.000159,2]
[395249431,1764568246235,-1172.33649554,0.000159,2]
[395249432,1764568246245,-1172.33649554,0.000159,2]
[395249433,1764568246254,-1172.33649554,0.000159,2]
[395249434,1764568246264,-1172.33649554,0.000159,2]
[395249435,1764568246274,-1172.33649554,0.000159,2]
[395249436,1764568246284,-150.0,0.000159,2]
[395249437,1764568246294,-163.70980013,0.00015905,2]
[395249438,1764568246304,-150.0,0.00015905,2]
[395249439,1764568246314,-226.79835367,0.00015905,2]
[395249440,1764568246323,-150.0,0.00015905,2]
[395249441,1764568246333,-150.0,0.00015912,2]
[395249442,1764568246343,-150.0,0.00015913,2]
[395249443,1764568246353,-207.38496735,0.00015919,2]
[395249444,1764568246362,-150.0,0.00015919,2]
[395249445,1764568246372,-215.9215938,0.00015919,2]
[395249446,1764568246382,-500.0,0.00015919,2]
[395249447,1764568246392,-150.0,0.00015919,2]
[395249448,1764568246401,-504.66240196,0.00015919,2]
[395249449,1764568246411,-425.64641507,0.00015919,2]
[395249450,1764568246420,-500.0,0.00015919,2]
[395249451,1764568246430,-500.0,0.00015919,2]
[395249452,1764568246524,-588.42389911,0.00015919,2]
[395249453,1764568246534,-500.0,0.00015919,2]
[395249454,1764568246547,-417.0,0.00015919,2]
[395249455,1764568246555,-500.0,0.00015919,2]
[395249456,1764568246565,-150.0,0.00015919,2]
[395249457,1764568246573,-150.0,0.00015919,2]
[395249458,1764568246582,-500.0,0.00015919,2]
[395249459,1764568246591,-3855.0,0.00015919,2]
[395249460,1764568246601,-200.0,0.00015919,2]
[395249461,1764568246610,-163.70980013,0.00015923,2]
[395249462,1764568246619,-226.79835367,0.00015923,2]
[395249463,1764568246628,-150.0,0.00015927,2]
[395249464,1764568246637,-150.0,0.00015928,2]
[395249465,1764568246646,-150.0,0.00015937,2]
[395249466,1764568246655,-163.70980013,0.0001594,2]
[395249467,1764568246664,-226.79835367,0.0001594,2]
[395249468,1764568246674,-150.0,0.00015943,2]
[395249469,1764568246685,-150.0,0.00015945,2]
[395249470,1764568246699,-150.0,0.00015949,2]
[395249471,1764568246710,-150.0,0.00015952,2]
[395249472,1764568246720,-150.0,0.00015956,2]
[395249473,1764568246730,-163.70980013,0.00015957,2]
[395249474,1764568246739,-226.79835367,0.00015957,2]
[395249475,1764568246748,-150.0,0.00015957,2]
[395249476,1764568246757,-150.0,0.00015962,2]
[395249477,1764568246767,-150.0,0.00015967,2]
[395249478,1764568246777,-150.0,0.00015967,2]
[395249479,1764568246786,-150.0,0.00015972,2]
[395249480,1764568246796,-150.0,0.00015973,2]
[395249481,1764568246805,-163.70980013,0.00015974,2]
[395249482,1764568246814,-226.79835367,0.00015974,2]
[395249483,1764568246823,-150.0,0.00015984,2]
[395249484,1764568246832,-150.0,0.00015987,2]
[395249485,1764568246842,-36696.25539655,0.00015987,2]
[395249486,1764568246851,-13970.72633565,0.00015987,2]
[395249487,1764568246860,-163.70980013,0.00015991,2]
[395249488,1764568246869,-226.79835367,0.00015991,2]
[395249489,1764568246878,-150.0,0.00015994,2]
[395249490,1764568246887,-181.64809496,0.00015996,7]
[395249491,1764568246896,-500.0,0.00015999,2]
[395249492,1764568246906,-500.0,0.00015999,2]
[395249493,1764568246918,-1703.44,0.00015999,2]
[395249494,1764568246931,-500.0,0.00015999,2]
[395249495,1764568246943,-500.0,0.00015999,2]
[395249496,1764568246952,-500.0,0.00015999,2]
[395249497,1764568246962,-500.0,0.00015999,2]
[395249498,1764568246972,-500.0,0.00015999,2]
[395249499,1764568246981,-4297.35,0.00015999,2]
[395249500,1764568246990,-500.0,0.00015999,2]
[395249501,1764568246999,-500.0,0.00015999,2]
[395249502,1764568247008,-331.93282423,0.00015999,2]
[395249503,1764568247017,-500.0,0.00015999,2]
[395249504,1764568247026,-500.0,0.00015999,2]
[395249505,1764568247035,-150.0,0.00016,2]
[395249506,1764568247044,-2000.0,0.00016,2]
[395249507,1764568247054,-150.0,0.00016003,2]
[395249508,1764568247063,-163.70980013,0.00016008,2]
[395249509,1764568247072,-226.79835367,0.00016008,2]
[395249510,1764568247082,-150.0,0.00016008,2]
[395249511,1764568247091,-150.0,0.00016012,2]
[395249512,1764568247100,-150.0,0.00016012,2]
[395249513,1764568247109,-150.0,0.00016016,2]
[395249514,1764568247119,-150.0,0.00016016,2]
[395249515,1764568247128,-163.70980013,0.00016025,2]
[395249516,1764568247138,-226.79835367,0.00016025,2]
[395249517,1764568247148,-150.0,0.00016026,2]
[395249518,1764568247157,-150.0,0.00016033,2]
[395249519,1764568247166,-150.0,0.00016037,2]
[395249520,1764568247175,-150.0,0.00016038,2]
[395249521,1764568247184,-150.0,0.0001604,2]
[395249522,1764568247194,-163.70980013,0.00016043,2]
[395249523,1764568247203,-226.79835367,0.00016043,2]
[395249524,1764568247213,-1193.0,0.00016044,2]
[395249525,1764568247222,-1033.32870599,0.00016049,2]
[395249526,1764568247231,-484.48020322,0.00016049,2]
[395249527,1764568247240,-150.0,0.00016055,2]
[395249528,1764568247249,-150.0,0.00016056,2]
[395249529,1764568247258,-500.0,0.00016056,2]
[395249530,1764568247267,-212.94335419,0.00016056,2]
[395249531,1764568247277,-500.0,0.00016056,2]
[395249532,1764568247286,-500.0,0.00016056,2]
[395249533,1764568247295,-500.0,0.00016056,2]
[395249534,1764568247304,-417.0,0.00016056,2]
[395249535,1764568247314,-500.0,0.00016056,2]
[395249536,1764568247323,-186.65279503,0.00016056,2]
[395249537,1764568247332,-255.55740225,0.00016056,2]
[395249538,1764568247342,-500.0,0.00016056,2]
[395249539,1764568247351,-3855.0,0.00016056,2]
[395249540,1764568247361,-163.70980013,0.0001606,2]
[395249541,1764568247370,-150.0,0.0001606,2]
[395249542,1764568247379,-226.79835367,0.0001606,2]
[395249543,1764568247388,-150.0,0.0001606,2]
[395249544,1764568247398,-150.0,0.00016062,2]
[395249545,1764568247407,-150.0,0.00016062,2]
[395249546,1764568247417,-150.0,0.00016067,2]
[395249547,1764568247426,-1703.44,0.00016076,2]
[395249548,1764568247435,-163.70980013,0.00016077,2]
[395249549,1764568247444,-226.79835367,0.00016077,2]
[395249550,1764568247454,-150.0,0.0001608,2]
[395249551,1764568247463,-150.0,0.00016082,2]
[395249552,1764568247472,-150.0,0.00016087,2]
[395249553,1764568247482,-150.0,0.00016092,2]
[395249554,1764568247491,-163.70980013,0.00016094,2]
[395249555,1764568247501,-226.79835367,0.00016094,2]
[395249556,1764568247511,-150.0,0.00016095,2]
[395249557,1764568247520,-150.0,0.000161,2]
[395249558,1764568247530,-150.0,0.00016104,2]
[395249559,1764568247539,-150.0,0.0001611,2]
[395249560,1764568247548,-6164.0,0.0001611,2]
[395249561,1764568247557,-163.70980013,0.00016111,2]
[395249562,1764568247566,-226.79835367,0.00016111,2]
[395249563,1764568247575,-150.0,0.00016111,2]
[395249564,1764568247585,-150.0,0.00016112,2]
[395249565,1764568247593,-9999.99,0.00016116,2]
[395249566,1764568247602,-150.0,0.00016122,2]
[395249567,1764568247612,-150.0,0.00016123,2]
[395249568,1764568247621,-150.0,0.00016126,2]
[395249569,1764568247631,-163.70980013,0.00016128,2]
[395249570,1764568247640,-226.79835367,0.00016128,2]
[395249571,1764568247649,-150.0,0.00016137,2]
[395249572,1764568247658,-150.0,0.00016137,2]
[395249573,1764568247667,-150.0,0.00016137,2]
[395249574,1764568247676,-150.0,0.00016137,2]
[395249575,1764568247685,-163.70980013,0.00016146,2]
[395249576,1764568247695,-226.79835367,0.00016146,2]
[395249577,1764568247704,-500.0,0.00016146,2]
[395249578,1764568247713,-500.0,0.00016148,2]
[395249579,1764568247723,-523.35292461,0.00016148,2]
[395249580,1764568247731,-500.0,0.00016148,2]
[395249581,1764568247741,-500.0,0.00016148,2]
[395249582,1764568247750,-1703.44,0.00016148,2]
[395249583,1764568247758,-500.0,0.00016148,2]
[395249584,1764568247768,-500.0,0.00016148,2]
[395249585,1764568247776,-500.0,0.00016148,2]
[395249586,1764568247786,-500.0,0.00016148,2]
[395249587,1764568247795,-500.0,0.00016148,2]
[395249588,1764568247804,-500.0,0.00016148,2]
[395249589,1764568247814,-500.0,0.00016148,2]
[395249590,1764568247823,-4297.35,0.00016148,2]
[395249591,1764568247831,-4297.35,0.00016148,2]
[395249592,1764568247841,-500.0,0.00016148,2]
[395249593,1764568247849,-500.0,0.00016148,2]
[395249594,1764568247858,-500.0,0.00016148,2]
[395249595,1764568247867,-500.0,0.00016148,2]
[395249596,1764568247876,-500.0,0.00016148,2]
[395249597,1764568247885,-500.0,0.00016148,2]
[395249598,1764568247894,-386.00822049,0.00016148,2]
[395249599,1764568247904,-500.0,0.00016148,2]
[395249600,1764568247915,-439.86233974,0.00016148,2]